fUSD/lending_fUSD_20240107
["ID","MTS","AMOUNT","RATE_DAILY","PERIOD"]
[310632882,1704595832004,-722.92,0.00022654,2]
[310632883,1704595832014,-737.55,0.00022677,2]
[310632884,1704595832024,-22777.8714,0.00022697,2]
[310632885,1704595832033,-580.68,0.00022697,2]
[310632886,1704595832044,-1320.0,0.000227,2]
[310632887,1704595832055,-171.70917615,0.00022701,2]
[310632888,1704595832064,-1968.29,0.00022701,2]
[310632889,1704595832075,-727.14,0.00022704,2]
[310632890,1704595832084,-444.16,0.00022704,2]
[310632891,1704595832095,-499.99,0.00022704,2]
[310632892,1704595832105,-150.0,0.00022739,2]
[310632893,1704595832117,-728.4,0.00022742,2]
[310632894,1704595832126,-150.0,0.00022742,2]
[310632895,1704595832136,-150.0,0.00022748,2]
[310632896,1704595832146,-150.0,0.00022748,2]
[310632897,1704595832155,-150.0,0.00022749,2]
[310632898,1704595832165,-150.0,0.00022751,2]
[310632899,1704595832175,-300.0,0.00022756,2]
[310632900,1704595832184,-150.0,0.00022758,2]
[310632901,1704595832194,-187.97504453,0.00022759,2]
[310632902,1704595832204,-1440.0,0.00022764,2]
[310632903,1704595832215,-1500.0,0.00022764,2]
[310632904,1704595832224,-492.81131721,0.00022764,2]
[310632905,1704595832235,-476.68216041,0.00022766,2]
[310632907,1704595832244,-150.0,0.00022767,2]
[310632909,1704595832254,-6684.20063114,0.00022767,2]
[310632910,1704595832266,-465.69,0.00022767,2]
[310632911,1704595832285,-3708.58136388,0.00022767,2]
[310632912,1704595832298,-266.569,0.00022767,2]
[310632913,1704595832325,-400.0,0.00022767,2]
[310632914,1704595832344,-823.78883687,0.00022767,2]
[310632915,1704595832357,-300.0,0.00022767,2]
[310632916,1704595832374,-457.63969015,0.00022767,2]
[310632917,1704595832646,-1009.20539725,0.00022767,2]
[310632918,1704595832660,-1033.7,0.00022767,2]
[310632919,1704595832672,-419.88124136,0.00022767,2]
[310632922,1704595838000,-9681.52189555,0.00022767,2]
[310632923,1704595838010,-150.0,0.00022768,2]
[310632924,1704595838021,-150.0,0.00022773,2]
[310632925,1704595838031,-300.0,0.00022779,2]
[310632926,1704595838041,-1319.999999,0.0002278,2]
[310632927,1704595838052,-150.0,0.00022781,2]
[310632928,1704595838065,-150.0,0.00022784,2]
[310632929,1704595838074,-150.0,0.0002279,2]
[310632930,1704595838083,-150.0,0.00022792,2]
[310632931,1704595838092,-150.0,0.00022793,2]
[310632932,1704595838102,-2384.23449028,0.00022795,3]
[310632933,1704595838111,-442.2,0.00022795,2]
[310632934,1704595838121,-19304.57834622,0.00022795,2]
[310632935,1704595838145,-851.71235378,0.00022795,2]
[310632936,1704595838155,-150.0,0.00022797,2]
[310632937,1704595838164,-150.0,0.00022798,2]
[310632938,1704595838174,-150.0,0.00022799,2]
[310632939,1704595838184,-150.0,0.00022802,2]
[310632940,1704595838193,-150.0,0.00022802,2]
[310632941,1704595838203,-300.0,0.00022802,2]
[310632942,1704595838212,-150.0,0.00022803,2]
[310632943,1704595838222,-150.0,0.00022807,2]
[310632944,1704595838232,-150.0,0.00022813,2]
[310632945,1704595838242,-500.0,0.00022813,2]
[310632946,1704595838251,-150.0,0.00022814,2]
[310632947,1704595838261,-500.0,0.00022815,2]
[310632948,1704595838270,-150.0,0.00022816,2]
[310632949,1704595838280,-345.53,0.00022822,2]
[310632950,1704595838290,-150.0,0.00022824,2]
[310632951,1704595838299,-150.0,0.00022827,2]
[310632952,1704595838308,-150.0,0.0002283,2]
[310632953,1704595838318,-150.0,0.00022833,2]
[310632954,1704595838327,-150.0,0.00022834,2]
[310632955,1704595838336,-150.0,0.00022841,2]
[310632956,1704595838349,-150.0,0.00022843,2]
[310632957,1704595838358,-150.0,0.00022845,2]
[310632958,1704595838368,-150.0,0.00022849,2]
[310632959,1704595838377,-150.0,0.00022852,2]
[310632960,1704595838387,-150.0,0.00022852,2]
[310632961,1704595838397,-712.79,0.00022857,2]
[310632962,1704595838406,-150.0,0.00022865,2]
[310632963,1704595838416,-283.46290559,0.00022867,2]
[310632964,1704595838425,-300.0,0.00022868,2]
[310632965,1704595838434,-150.0,0.00022871,2]
[310632966,1704595838443,-150.0,0.00022872,2]
[310632967,1704595838453,-150.0,0.00022874,2]
[310632968,1704595838462,-150.0,0.00022877,2]
[310632969,1704595838473,-150.0,0.00022881,2]
[310632970,1704595838482,-150.0,0.00022883,2]
[310632971,1704595838491,-150.0,0.00022885,2]
[310632972,1704595838500,-150.0,0.00022887,2]
[310632973,1704595838510,-150.0,0.0002289,2]
[310632974,1704595838519,-150.0,0.00022891,2]
[310632975,1704595838529,-150.0,0.00022891,2]
[310632976,1704595838538,-150.0,0.00022892,2]
[310632977,1704595838548,-150.0,0.00022893,2]
[310632978,1704595838558,-150.0,0.00022893,2]
[310632979,1704595838567,-519.8989,0.00022894,2]
[310632980,1704595838578,-229.48605511,0.00022895,2]
[310632981,1704595838591,-315.84495811,0.00022895,2]
[310632982,1704595838600,-500.0,0.00022895,2]
[310632983,1704595838610,-500.0,0.00022895,2]
[310632984,1704595838620,-560.56,0.00022895,2]
[310632985,1704595838629,-500.0,0.00022895,2]
[310632986,1704595838639,-500.0,0.00022895,2]
[310632987,1704595838650,-500.0,0.00022895,2]
[310632988,1704595838662,-500.0,0.00022895,2]
[310632989,1704595838672,-500.0,0.00022895,2]
[310632990,1704595838684,-500.0,0.00022895,2]
[310632991,1704595838694,-500.0,0.00022895,2]
[310632992,1704595838704,-150.0,0.00022897,2]
[310632993,1704595838715,-763.21629546,0.00022897,2]
[310632994,1704595838725,-763.21629546,0.00022898,2]
[310632995,1704595838735,-763.21629546,0.00022898,2]
[310632996,1704595838745,-763.21629546,0.00022899,2]
[310632997,1704595838754,-163.7065,0.00022899,2]
[310632998,1704595838765,-763.21629546,0.00022899,2]
[310632999,1704595838775,-5086.51551683,0.000229,2]
[310633000,1704595838784,-3647.0,0.000229,2]
[310633001,1704595838794,-35116.79921806,0.000229,2]
[310633002,1704595838807,-394.20078194,0.000229,2]
[310633003,1704595838817,-763.21629546,0.000229,2]
[310633004,1704595838826,-417.81755705,0.000229,2]
[310633005,1704595838836,-150.0,0.00022905,2]
[310633006,1704595838846,-150.0,0.00022907,2]
[310633007,1704595838857,-150.0,0.00022919,2]
[310633008,1704595838866,-150.0,0.00022924,2]
[310633009,1704595838876,-150.0,0.00022925,2]
[310633010,1704595838886,-150.0,0.00022926,2]
[310633011,1704595838896,-150.0,0.00022928,2]
[310633012,1704595838905,-150.0,0.00022929,2]
[310633013,1704595838917,-150.0,0.00022943,2]
[310633014,1704595838928,-150.0,0.00022944,2]
[310633015,1704595838938,-150.0,0.00022944,2]
[310633016,1704595838948,-150.0,0.0002295,2]
[310633017,1704595838958,-336.91153015,0.00022953,2]
[310633018,1704595838967,-169.61,0.0002296,2]
[310633019,1704595838977,-150.0,0.00022965,2]
[310633020,1704595838986,-150.0,0.00022971,2]
[310633021,1704595838995,-150.0,0.00022971,2]
[310633022,1704595839005,-150.0,0.00022974,2]
[310633023,1704595839015,-150.0,0.00022977,2]
[310633024,1704595839024,-150.0,0.00022978,2]
[310633025,1704595839034,-150.0,0.00022983,2]
[310633026,1704595839044,-150.0,0.00022986,2]
[310633027,1704595839054,-150.0,0.00022986,2]
[310633028,1704595839064,-150.0,0.00022989,2]
[310633029,1704595839073,-500.0,0.0002299,2]
[310633030,1704595839082,-500.0,0.0002299,2]
[310633031,1704595839092,-500.0,0.0002299,2]
[310633032,1704595839101,-500.0,0.0002299,2]
[310633033,1704595839111,-500.0,0.0002299,2]
[310633034,1704595839122,-500.0,0.0002299,2]
[310633035,1704595839132,-213.82,0.0002299,2]
[310633036,1704595839142,-500.0,0.0002299,2]
[310633037,1704595839152,-500.0,0.0002299,2]
[310633038,1704595839162,-500.0,0.0002299,2]
[310633039,1704595839172,-500.0,0.0002299,2]
[310633040,1704595839183,-500.0,0.0002299,2]
[310633041,1704595839192,-500.0,0.0002299,2]
[310633042,1704595839202,-500.0,0.0002299,2]
[310633043,1704595839212,-385.26943341,0.0002299,2]
[310633044,1704595839222,-500.0,0.0002299,2]
[310633045,1704595839232,-500.0,0.0002299,2]
[310633046,1704595839241,-500.0,0.0002299,2]
[310633047,1704595839251,-500.0,0.0002299,2]
[310633048,1704595839261,-500.0,0.0002299,2]
[310633049,1704595839271,-500.0,0.0002299,2]
[310633050,1704595839281,-500.0,0.0002299,2]
[310633051,1704595839291,-519.91796792,0.0002299,2]
[310633052,1704595839300,-500.0,0.0002299,2]
[310633053,1704595839310,-500.0,0.0002299,2]
[310633054,1704595839320,-500.0,0.0002299,2]
[310633055,1704595839329,-500.0,0.0002299,2]
[310633056,1704595839338,-500.0,0.0002299,2]
[310633057,1704595839348,-500.0,0.0002299,2]
[310633058,1704595839357,-500.0,0.0002299,2]
[310633059,1704595839368,-500.0,0.0002299,2]
[310633060,1704595839378,-500.0,0.0002299,2]
[310633061,1704595839388,-523.48607637,0.0002299,2]
[310633062,1704595839397,-150.0,0.00022991,2]
[310633063,1704595839407,-1727.79452875,0.00022994,3]
[310633064,1704595839417,-1770.9107659,0.00022994,2]
[310633065,1704595839427,-42876.1296855,0.00022994,2]
[310633066,1704595839437,-500.0,0.00022994,2]
[310633067,1704595839446,-575.85,0.00022995,2]
[310633068,1704595839456,-555.23,0.00022995,2]
[310633069,1704595839466,-500.0,0.00022995,2]
[310633070,1704595839475,-500.0,0.00022995,2]
[310633071,1704595839485,-278.4705262,0.00022995,2]
[310633072,1704595839494,-500.0,0.00022995,2]
[310633073,1704595839504,-500.0,0.00022995,2]
[310633074,1704595839514,-500.0,0.00022995,2]
[310633075,1704595839525,-1751.68,0.00022995,2]
[310633076,1704595839535,-500.0,0.00022995,2]
[310633077,1704595839546,-500.0,0.00022995,2]
[310633078,1704595839555,-500.0,0.00022995,2]
[310633079,1704595839565,-500.0,0.00022995,2]
[310633080,1704595839575,-500.0,0.00022995,2]
[310633081,1704595839585,-500.0,0.00022995,2]
[310633082,1704595839594,-240.48391442,0.00022995,2]
[310633083,1704595839604,-500.0,0.00022995,2]
[310633084,1704595839613,-500.0,0.00022995,2]
[310633085,1704595839624,-500.0,0.00022995,2]
[310633086,1704595839633,-500.0,0.00022995,2]
[310633087,1704595839642,-500.0,0.00022995,2]
[310633088,1704595839652,-500.0,0.00022995,2]
[310633089,1704595839662,-500.0,0.00022995,2]
[310633090,1704595839671,-500.0,0.00022995,2]
[310633091,1704595839681,-500.0,0.00022995,2]
[310633092,1704595839690,-651.05,0.00022995,2]
[310633093,1704595839700,-500.0,0.00022995,2]
[310633094,1704595839710,-297.3704075,0.00022995,2]
[310633095,1704595839719,-500.0,0.00022995,2]
[310633096,1704595839729,-967.42,0.00022995,2]
[310633097,1704595839738,-924.53,0.00022995,2]
[310633098,1704595839748,-5485.85,0.00022995,2]
[310633099,1704595839758,-500.0,0.00022995,2]
[310633100,1704595839768,-500.0,0.00022995,2]
[310633101,1704595839778,-566.79,0.00022995,2]
[310633102,1704595839788,-500.0,0.00022995,2]
[310633103,1704595839798,-500.0,0.00022995,2]
[310633104,1704595839809,-500.0,0.00022995,2]
[310633105,1704595839820,-2657.5,0.00022995,2]
[310633106,1704595839829,-500.0,0.00022995,2]
[310633107,1704595839838,-459.3678483,0.00022995,2]
[310633108,1704595839848,-500.0,0.00022995,2]
[310633109,1704595839858,-931.73,0.00022995,2]
[310633110,1704595839870,-500.0,0.00022995,2]
[310633111,1704595839879,-500.0,0.00022995,2]
[310633112,1704595839889,-500.0,0.00022995,2]
[310633113,1704595839899,-500.0,0.00022995,2]
[310633114,1704595839908,-500.0,0.00022995,2]
[310633115,1704595839917,-500.0,0.00022995,2]
[310633116,1704595839927,-500.0,0.00022995,2]
[310633117,1704595839936,-500.0,0.00022995,2]
[310633118,1704595839945,-500.0,0.00022995,2]
[310633119,1704595839955,-500.0,0.00022995,2]
[310633120,1704595839964,-500.0,0.00022995,2]
[310633121,1704595839973,-2393.36531837,0.00022996,3]
[310633122,1704595839983,-1205.52799487,0.00022996,2]
[310633123,1704595839993,-3942.2508466,0.00022996,2]
[310633124,1704595840002,-1737.42833879,0.00022996,2]
[310633125,1704595840011,-500.0,0.00022996,2]
[310633126,1704595840021,-500.0,0.00022996,2]
[310633127,1704595840030,-500.0,0.00022996,2]
[310633128,1704595840039,-500.0,0.00022996,2]
[310633129,1704595840049,-500.0,0.00022996,2]
[310633130,1704595840061,-500.0,0.00022996,2]
[310633131,1704595840070,-500.0,0.00022996,2]
[310633132,1704595840080,-500.0,0.00022996,2]
[310633133,1704595840091,-500.0,0.00022996,2]
[310633134,1704595840101,-172.71741738,0.00022996,2]
[310633135,1704595840111,-500.0,0.00022996,2]
[310633136,1704595840120,-500.0,0.00022996,2]
[310633137,1704595840130,-500.0,0.00022996,2]
[310633138,1704595840141,-500.0,0.00022996,2]
[310633139,1704595840150,-500.0,0.00022996,2]
[310633140,1704595840160,-500.0,0.00022996,2]
[310633141,1704595840170,-500.0,0.00022996,2]
[310633142,1704595840179,-434.77529268,0.00022996,2]
[310633143,1704595840189,-500.0,0.00022996,2]
[310633144,1704595840198,-500.0,0.00022996,2]
[310633145,1704595840207,-500.0,0.00022996,2]
[310633146,1704595840217,-500.0,0.00022996,2]
[310633147,1704595840227,-189.48431044,0.00022996,2]
[310633148,1704595840237,-500.0,0.00022996,2]
[310633149,1704595840247,-500.0,0.00022996,2]
[310633150,1704595840256,-594.47811763,0.00022996,2]
[310633151,1704595840266,-500.0,0.00022996,2]
[310633152,1704595840275,-500.0,0.00022996,2]
[310633153,1704595840285,-500.0,0.00022996,2]
[310633154,1704595840296,-500.0,0.00022996,2]
[310633155,1704595840306,-500.0,0.00022996,2]
[310633156,1704595840318,-500.0,0.00022996,2]
[310633157,1704595840328,-500.0,0.00022996,2]
[310633158,1704595840337,-500.0,0.00022996,2]
[310633159,1704595840346,-500.0,0.00022996,2]
[310633160,1704595840357,-500.0,0.00022996,2]
[310633161,1704595840367,-500.0,0.00022996,2]
[310633162,1704595840378,-500.0,0.00022996,2]
[310633163,1704595840387,-500.0,0.00022996,2]
[310633164,1704595840399,-500.0,0.00022996,2]
[310633165,1704595840409,-500.0,0.00022996,2]
[310633166,1704595840419,-500.0,0.00022996,2]
[310633167,1704595840430,-500.0,0.00022996,2]
[310633168,1704595840439,-500.0,0.00022996,2]
[310633169,1704595840449,-500.0,0.00022996,2]
[310633170,1704595840458,-300.0,0.00022996,2]
[310633171,1704595840468,-500.0,0.00022996,2]
[310633172,1704595840477,-500.0,0.00022996,2]
[310633173,1704595840486,-500.0,0.00022996,2]
[310633174,1704595840495,-500.0,0.00022996,2]
[310633175,1704595840504,-500.0,0.00022996,2]
[310633176,1704595840514,-500.0,0.00022996,2]
[310633177,1704595840523,-500.0,0.00022996,2]
[310633178,1704595840532,-500.0,0.00022996,2]
[310633179,1704595840541,-500.0,0.00022996,2]
[310633180,1704595840550,-500.0,0.00022996,2]
[310633181,1704595840560,-500.0,0.00022996,2]
[310633182,1704595840569,-500.0,0.00022996,2]
[310633183,1704595840578,-500.0,0.00022996,2]
[310633184,1704595840587,-1055.11,0.00022996,2]
[310633185,1704595840597,-500.0,0.00022996,2]
[310633186,1704595840606,-500.0,0.00022996,2]
[310633187,1704595840615,-500.0,0.00022996,2]
[310633188,1704595840628,-500.0,0.00022996,2]
[310633189,1704595840638,-500.0,0.00022996,2]
[310633190,1704595840648,-500.0,0.00022996,2]
[310633191,1704595840658,-500.0,0.00022996,2]
[310633192,1704595840667,-500.0,0.00022996,2]
[310633193,1704595840676,-500.0,0.00022996,2]
[310633194,1704595840686,-500.0,0.00022996,2]
[310633195,1704595840695,-500.0,0.00022996,2]
[310633196,1704595840705,-500.0,0.00022996,2]
[310633197,1704595840714,-500.0,0.00022996,2]
[310633198,1704595840723,-500.0,0.00022996,2]
[310633199,1704595840733,-500.0,0.00022996,2]
[310633200,1704595840742,-500.0,0.00022996,2]
[310633201,1704595840755,-500.0,0.00022996,2]
[310633202,1704595840764,-207.94527503,0.00022996,2]
[310633203,1704595840774,-500.0,0.00022996,2]
[310633204,1704595840783,-500.0,0.00022996,2]
[310633205,1704595840792,-500.0,0.00022996,2]
[310633206,1704595840802,-500.0,0.00022996,2]
[310633207,1704595840811,-500.0,0.00022996,2]
[310633208,1704595840820,-500.0,0.00022996,2]
[310633209,1704595840829,-500.0,0.00022996,2]
[310633210,1704595840838,-500.0,0.00022996,2]
[310633211,1704595840847,-500.0,0.00022996,2]
[310633212,1704595840856,-500.0,0.00022996,2]
[310633213,1704595840865,-500.0,0.00022996,2]
[310633214,1704595840877,-500.0,0.00022996,2]
[310633215,1704595840886,-500.0,0.00022996,2]
[310633216,1704595840896,-500.0,0.00022996,2]
[310633217,1704595840905,-500.0,0.00022996,2]
[310633218,1704595840915,-346.39633677,0.00022996,2]
[310633219,1704595840926,-2173.6020267,0.00022997,2]
[310633220,1704595840935,-500.0,0.00022997,2]
[310633221,1704595840944,-500.0,0.00022997,2]
[310633222,1704595840954,-560.56,0.00022997,2]
[310633223,1704595840964,-500.0,0.00022997,2]
[310633224,1704595840973,-500.0,0.00022997,2]
[310633225,1704595840982,-500.0,0.00022997,2]
[310633226,1704595840992,-507.85305629,0.00022997,2]
[310633227,1704595841001,-518.49567266,0.00022997,2]
[310633228,1704595841011,-500.0,0.00022997,2]
[310633229,1704595841021,-500.0,0.00022997,2]
[310633230,1704595841030,-500.0,0.00022997,2]
[310633231,1704595841039,-500.0,0.00022997,2]
[310633232,1704595841050,-500.0,0.00022997,2]
[310633233,1704595841059,-651.05,0.00022997,2]
[310633234,1704595841070,-967.42,0.00022997,2]
[310633235,1704595841080,-5485.85,0.00022997,2]
[310633236,1704595841090,-500.0,0.00022997,2]
[310633237,1704595841100,-500.0,0.00022997,2]
[310633238,1704595841111,-527.54,0.00022997,2]
[310633239,1704595841121,-2657.5,0.00022997,2]
[310633240,1704595841131,-500.0,0.00022997,2]
[310633241,1704595841140,-500.0,0.00022997,2]
[310633242,1704595841150,-500.0,0.00022997,2]
[310633243,1704595841160,-177.02629363,0.00022997,2]
[310633244,1704595841170,-500.0,0.00022997,2]
[310633245,1704595841180,-249.08,0.00022998,2]
[310633246,1704595841190,-500.0,0.00022998,2]
[310633247,1704595841200,-500.0,0.00022998,2]
[310633248,1704595841209,-500.0,0.00022998,2]
[310633249,1704595841219,-500.0,0.00022998,2]
[310633250,1704595841228,-515.42,0.00022998,2]
[310633251,1704595841239,-485.5387164,0.00022998,2]
[310633252,1704595841248,-500.0,0.00022998,2]
[310633253,1704595841258,-440.50236382,0.00022998,2]
[310633254,1704595841268,-500.0,0.00022998,2]
[310633255,1704595841278,-500.0,0.00022998,2]
[310633256,1704595841288,-500.0,0.00022998,2]
[310633257,1704595841297,-534.93481668,0.00022998,2]
[310633258,1704595841307,-500.0,0.00022998,2]
[310633259,1704595841317,-500.0,0.00022998,2]
[310633260,1704595841326,-500.0,0.00022998,2]
[310633261,1704595841336,-500.0,0.00022998,2]
[310633262,1704595841346,-500.0,0.00022998,2]
[310633263,1704595841357,-500.0,0.00022998,2]
[310633264,1704595841366,-228.76067231,0.00022998,2]
[310633265,1704595841377,-500.0,0.00022998,2]
[310633266,1704595841386,-500.0,0.00022998,2]
[310633267,1704595841395,-500.0,0.00022998,2]
[310633268,1704595841405,-500.0,0.00022998,2]
[310633269,1704595841414,-500.0,0.00022998,2]
[310633270,1704595841423,-500.0,0.00022998,2]
[310633271,1704595841433,-181.97049567,0.00022998,2]
[310633272,1704595841443,-518.02496602,0.00022998,2]
[310633273,1704595841453,-500.0,0.00022998,2]
[310633274,1704595841462,-500.0,0.00022998,2]
[310633275,1704595841471,-522.75758599,0.00022998,2]
[310633276,1704595841481,-500.0,0.00022998,2]
[310633277,1704595841680,-247.42,0.00022998,2]
[310633278,1704595841690,-500.0,0.00022998,2]
[310633279,1704595841700,-500.0,0.00022998,2]
[310633280,1704595841709,-514.35349648,0.00022998,2]
[310633281,1704595841718,-199.32223239,0.00022998,2]
[310633282,1704595841727,-500.0,0.00022998,2]
[310633283,1704595841737,-331.74363637,0.00022998,2]
[310633284,1704595841746,-500.0,0.00022998,2]
[310633285,1704595841756,-514.53726143,0.00022998,2]
[310633286,1704595841766,-560.56,0.00022998,2]
[310633287,1704595841775,-560.56,0.00022998,2]
[310633288,1704595841785,-500.0,0.00022998,2]
[310633289,1704595841794,-263.29320954,0.00022998,2]
[310633290,1704595841804,-365.44112892,0.00022998,2]
[310633291,1704595841813,-500.0,0.00022998,2]
[310633292,1704595841822,-500.0,0.00022998,2]
[310633293,1704595841831,-500.0,0.00022998,2]
[310633294,1704595841840,-500.0,0.00022998,2]
[310633295,1704595841849,-500.0,0.00022998,2]
[310633296,1704595841859,-604.30577351,0.00022998,2]
[310633297,1704595841868,-500.0,0.00022998,2]
[310633298,1704595841878,-500.0,0.00022998,2]
[310633299,1704595841887,-500.0,0.00022998,2]
[310633300,1704595841897,-500.0,0.00022998,2]
[310633301,1704595841906,-500.0,0.00022998,2]
[310633302,1704595841915,-500.0,0.00022998,2]
[310633303,1704595841925,-500.0,0.00022998,2]
[310633304,1704595841934,-500.0,0.00022998,2]
[310633305,1704595841943,-500.0,0.00022998,2]
[310633306,1704595841952,-500.0,0.00022998,2]
[310633307,1704595841961,-500.0,0.00022998,2]
[310633308,1704595841971,-500.0,0.00022998,2]
[310633309,1704595841980,-500.0,0.00022998,2]
[310633310,1704595841990,-500.0,0.00022998,2]
[310633311,1704595841999,-500.0,0.00022998,2]
[310633312,1704595842008,-500.0,0.00022998,2]
[310633313,1704595842017,-500.0,0.00022998,2]
[310633314,1704595842026,-500.0,0.00022998,2]
[310633315,1704595842035,-500.0,0.00022998,2]
[310633316,1704595842045,-500.0,0.00022998,2]
[310633317,1704595842054,-500.0,0.00022998,2]
[310633318,1704595842066,-500.0,0.00022998,2]
[310633319,1704595842076,-500.0,0.00022998,2]
[310633320,1704595842085,-500.0,0.00022998,2]
[310633321,1704595842095,-500.0,0.00022998,2]
[310633322,1704595842106,-500.0,0.00022998,2]
[310633323,1704595842115,-500.0,0.00022998,2]
[310633324,1704595842125,-500.0,0.00022998,2]
[310633325,1704595842135,-190.93045693,0.00022998,2]
[310633326,1704595842146,-500.0,0.00022998,2]
[310633327,1704595842155,-500.0,0.00022998,2]
[310633328,1704595842165,-232.19,0.00022998,2]
[310633329,1704595842175,-500.0,0.00022998,2]
[310633330,1704595842184,-500.0,0.00022998,2]
[310633331,1704595842193,-500.0,0.00022998,2]
[310633332,1704595842203,-500.0,0.00022998,2]
[310633333,1704595842212,-497.23738362,0.00022998,2]
[310633334,1704595842222,-500.0,0.00022998,2]
[310633335,1704595842231,-500.0,0.00022998,2]
[310633336,1704595842241,-500.0,0.00022998,2]
[310633337,1704595842250,-500.0,0.00022998,2]
[310633338,1704595842259,-500.0,0.00022998,2]
[310633339,1704595842268,-500.0,0.00022998,2]
[310633340,1704595842277,-500.0,0.00022998,2]
[310633341,1704595842286,-500.0,0.00022998,2]
[310633342,1704595842296,-500.0,0.00022998,2]
[310633343,1704595842305,-500.0,0.00022998,2]
[310633344,1704595842314,-500.0,0.00022998,2]
[310633345,1704595842323,-500.0,0.00022998,2]
[310633346,1704595842332,-500.0,0.00022998,2]
[310633347,1704595842342,-500.0,0.00022998,2]
[310633348,1704595842351,-534.3225734,0.00022998,2]
[310633349,1704595842360,-500.0,0.00022998,2]
[310633350,1704595842371,-500.0,0.00022998,2]
[310633351,1704595842380,-500.0,0.00022998,2]
[310633352,1704595842390,-500.0,0.00022998,2]
[310633353,1704595842400,-500.0,0.00022998,2]
[310633354,1704595842409,-500.0,0.00022998,2]
[310633355,1704595842418,-500.0,0.00022998,2]
[310633356,1704595842427,-500.0,0.00022998,2]
[310633357,1704595842437,-572.74367044,0.00022998,2]
[310633358,1704595842446,-500.0,0.00022998,2]
[310633359,1704595842456,-500.0,0.00022998,2]
[310633360,1704595842465,-500.0,0.00022998,2]
[310633361,1704595842475,-500.0,0.00022998,2]
[310633362,1704595842485,-500.0,0.00022998,2]
[310633363,1704595842494,-500.0,0.00022998,2]
[310633364,1704595842506,-527.76179488,0.00022998,2]
[310633365,1704595842518,-470.0,0.00022998,2]
[310633366,1704595842527,-500.0,0.00022998,2]
[310633367,1704595842537,-500.0,0.00022998,2]
[310633368,1704595842546,-500.0,0.00022998,2]
[310633369,1704595842557,-500.0,0.00022998,2]
[310633370,1704595842567,-476.50371814,0.00022998,2]
[310633371,1704595842577,-500.0,0.00022998,2]
[310633372,1704595842586,-500.0,0.00022998,2]
[310633373,1704595842596,-500.0,0.00022998,2]
[310633374,1704595842605,-500.0,0.00022998,2]
[310633375,1704595842615,-500.0,0.00022998,2]
[310633376,1704595842625,-526.98315397,0.00022998,2]
[310633377,1704595842635,-500.0,0.00022998,2]
[310633378,1704595842644,-500.0,0.00022998,2]
[310633379,1704595842653,-314.33066458,0.00022998,2]
[310633380,1704595842662,-500.0,0.00022998,2]
[310633382,1704595842672,-500.0,0.00022998,2]
[310633383,1704595842681,-500.0,0.00022998,2]
[310633385,1704595842690,-500.0,0.00022998,2]
[310633386,1704595842699,-500.0,0.00022998,2]
[310633387,1704595842709,-541.42642976,0.00022998,2]